Cogmind - Beta 13 @@@ ROGUE MODE // 2024.04.12 @ 13:15:13 // AFD2020/Player2 Player: Demo Result: Destroyed by RH-NSF(R) with Subdweller Laser Performance ------------- Evolutions (0) 0 Regions Visited (3) 600 Robots Destroyed (16) 80 Value Destroyed (274) 274 Prototype IDs (0) 0 Alien Tech Used (0) 0 Bonus (-179) -179 TOTAL SCORE: 775 Bonus ------- Follower Combat Kills 118 Friendly Fire -297 Cogmind --------- Core Integrity 0/250 Matter 267/300 Energy 160/160 System Corruption 0% Temperature Cool (15) Movement Rolling (95) Ox1 Location -10/Subcaves Parts ------- > --- POWER (1) -------- Light Nuclear Core > --- PROPULSION (2) --- Wheel > --- UTILITY (2) ------ Small Storage Unit Structural Scanner > --- WEAPON (2) ------- Medium Laser Rocket Launcher > --- INVENTORY (8) ---- Wheel Subdweller Monowheel Sensor Array Seismic Detector Hacking Suite Slug Cannon Datajack Makeshift Sword Peak State ------------ > --- POWER ------------ Light Nuclear Core > --- PROPULSION ------- Light Treads Wheel > --- UTILITY ---------- Small Storage Unit Structural Scanner > --- WEAPON ----------- Medium Laser Makeshift Sword > --- INVENTORY -------- Wheel Wheel Sensor Array Seismic Detector Hacking Suite Light Assault Rifle Rocket Launcher Datajack [Rating: 13] Favorites ----------- Power Light Nuclear Core Engine Light Ion Engine Power Core Light Nuclear Core Propulsion Wheel Treads Light Treads Wheel Wheel Utility Small Storage Unit Device Structural Scanner Storage Small Storage Unit Weapon Medium Laser Energy Gun Medium Laser Ballistic Gun Light Assault Rifle Ballistic Cannon Slug Cannon Launcher Rocket Launcher Slashing Weapon Makeshift Sword Special Melee Weapon Datajack Build | -11 -10 -10 -10 ------- Run | Yrd Mat Min Sub Slots Evolved . | . . . . Power . | . . . . Propulsion . | . . . . Utility . | . . . . Weapon . | . . . . Parts Attached 21 | 7 2 3 9 Power 2 | 1 . . 1 Engine 1 | 1 . . . Core 1 | . . . 1 Reactor . | . . . . Propulsion 6 | 2 2 . 2 Treads 2 | 1 1 . . Leg . | . . . . Wheel 4 | 1 1 . 2 Hover . | . . . . Flight . | . . . . Utility 3 | 2 . 1 . Device 2 | 1 . 1 . Storage 1 | 1 . . . Processor . | . . . . Hackware . | . . . . Protection . | . . . . Artifact . | . . . . Weapon 10 | 2 . 2 6 Energy Gun 1 | 1 . . . Energy Cannon . | . . . . Ballistic Gun 2 | 1 . 1 . Ballistic Cannon 1 | . . . 1 Launcher 2 | . . . 2 Special Weapon . | . . . . Impact Weapon . | . . . . Slashing Weapon 3 | . . . 3 Piercing Weapon . | . . . . Special Melee Weapon 1 | . . 1 . Unidentified Prototypes . | . . . . Parts Lost 2 | . . . 2 Power . | . . . . Propulsion 2 | . . . 2 Utility . | . . . . Weapon . | . . . . Highest Loss Streak 1 | . . . 1 To Critical Strikes . | . . . . Average Slot Usage (%) 99 | . 99 100 100 Engine 6 | . 14 14 1 Core 7 | . . . 12 Treads 13 | . 14 14 13 Wheel 14 | . 13 14 14 Device 14 | . 14 14 14 Storage 14 | . 14 14 14 Energy Gun 14 | . 14 14 14 Ballistic Gun 9 | . 14 13 7 Slashing Weapon 3 | . . . 5 Naked Turns . | . . . . Heaviest Build 20 | 12 12 12 20 Greatest Support 20 | 10 10 10 20 Greatest Overweight (x) 3 | 1 3 1 1 Average Overweight (x) . | . 1 1 . Largest Inventory Capacity 8 | 8 8 8 8 Average Capacity 7 | 7 8 8 8 Most Carried 8 | 8 8 8 8 Average Carried 7 | 4 7 8 7 Final Capacity 8 | 8 8 8 8 Final Carried 8 | 8 8 8 8 Class Distribution -------------------- 100% | Mutant Dominant Class ---------------- Mutant | -10/Materials Mutant | -10/Mines Mutant | -10/Subcaves Resources | -11 -10 -10 -10 ----------- Run | Yrd Mat Min Sub Matter Collected 513 | 292 21 47 153 Remotely . | . . . . Salvage Created 445 | 205 . 126 114 Parts 38 | 19 . 9 10 Haulers Intercepted . | . . . . Recyclers Shooed . | . . . . Parts Field Recycled . | . . . . Retrieved Matter . | . . . . Parts Self-Destructed 9 | . . . 9 Prevented . | . . . . Kills | -11 -10 -10 -10 ------- Run | Yrd Mat Min Sub Combat Hostiles Destroyed 8 | . . 4 4 Guns 6 | . . 4 2 AOE 2 | . . . 2 Classes Destroyed 6 | 3 . 2 1 Worker 2 | 2 . . . Tunneler 5 | 5 . . . Recycler 1 | 1 . . . Swarmer 3 | . . 2 1 Grunt 2 | . . 2 . Subdweller 3 | . . . 3 Best Kill Streak 8 | 8 . 2 2 Combat Bots Only 2 | . . 2 2 Max Kills in Single Turn 2 | 1 . 1 2 Gunslinging . | . . . . Exploded 2 | . . . 2 Melee . | . . . . Uniques/NPCs Destroyed . | . . . . Combat | -11 -10 -10 -10 -------- Run | Yrd Mat Min Sub Hostile Shots Fired 45 | . . 6 39 Missed 17 | . . 1 16 Damage Taken 647 | . . 42 605 Core 240 | . . 8 232 Absorbed by Shields . | . . . . Core Remaining (%) 100 | 100 . . . Volleys Fired 72 | 22 1 12 37 Largest 2 | 2 2 2 2 Hottest 98 | 70 70 70 98 Shots Fired 129 | 44 2 24 59 Gun 120 | 44 2 24 50 Cannon 2 | . . . 2 Launcher 7 | . . . 7 Special . | . . . . Kinetic 54 | 22 1 12 19 Thermal 68 | 22 1 12 33 Explosive 7 | . . . 7 Electromagnetic . | . . . . Robot Hit Streak 13 | 10 12 5 13 Robot Miss Streak 5 | 3 . 5 2 Penetration Max . | . . . . Secondary Targets . | . . . . Shots Hit Robots 83 | 25 2 15 41 Core Hits 35 | 12 1 6 16 Critical Kills . | . . . . Critical Parts Destroyed . | . . . . Critical Strikes 4 | 1 . 1 2 Burn 4 | 1 . 1 2 Melee Attacks 9 | . . 3 6 Impact . | . . . . Slashing 6 | . . . 6 Piercing . | . . . . Sneak Attacks 4 | . . 3 1 Combat Hostiles . | . . . . Follow-up Attacks . | . . . . Damage Inflicted 1488 | 269 23 150 1046 Guns 795 | 269 23 150 353 Cannons 33 | . . . 33 Explosions 584 | . . . 584 Melee 76 | . . . 76 Ramming . | . . . . Kinetic 235 | 53 10 61 111 Thermal 593 | 216 13 89 275 Explosive 584 | . . . 584 Electromagnetic . | . . . . Impact . | . . . . Slashing 76 | . . . 76 Piercing . | . . . . Highest Corruption . | . . . . Average Corruption . | . . . . Corruption Purged . | . . . . Corruption Blocked . | . . . . Overload Shots . | . . . . Overflow Damage 16 | . . . 16 Projectiles . | . . . . Explosions 16 | . . . 16 Melee . | . . . . Knockbacks 1 | . . . 1 Impact . | . . . . Kinetic 1 | . . . 1 Secondary . | . . . . Self-Inflicted Damage 25 | . . . 25 Shots 1 | . . . 1 Rammed . | . . . . Targets Rammed . | . . . . Kicked . | . . . . Crushed . | . . . . Highest Temperature 150 | 120 30 150 4 Average Temperature 55 | 52 18 67 3 Received Heat Transfer 84 | . . . 84 Siege Activations . | . . . . Robots Corrupted . | . . . . Combat Hostiles . | . . . . Parts Fried . | . . . . Impact Corruptions . | . . . . Robots Melted . | . . . . Combat Hostiles . | . . . . Parts Melted 1 | . . 1 . Heat Transferred 2007 | 703 37 305 962 Parts Sabotaged . | . . . . Parts Stolen . | . . . . Parts Stripped . | . . . . Power Chain Reactions . | . . . . Alert | -11 -10 -10 -10 ------- Run | Yrd Mat Min Sub Peak Influence 190 | 40 107 190 . Initial 41 | . 26 41 . Average 105 | 15 68 153 . Maximum Alert Level . | . . . . Low Security (%) 100 | 100 100 100 . Level 1 . | . . . . Level 2 . | . . . . Level 3 . | . . . . Level 4 . | . . . . Level 5 . | . . . . High Security . | . . . . Max Security . | . . . . Squads Dispatched 1 | . 1 . . Investigation . | . . . . Extermination . | . . . . Reinforcement 1 | . 1 . . Assault . | . . . . Garrison . | . . . . Intercept . | . . . . Searches Triggered . | . . . . Construction Impeded . | . . . . Haulers Reinforced . | . . . . Active Scanning Responses . | . . . . Cargo Convoy Interrupts . | . . . . Stealth | -11 -10 -10 -10 --------- Run | Yrd Mat Min Sub Distress Signals . | . . . . Communications Jammed . | . . . . Distress Signals . | . . . . Times Spotted 31 | . 3 5 23 Peak Tracking Total 4 | . 1 3 4 Tactical Retreats 2 | . . . 2 Traps | -11 -10 -10 -10 ------- Run | Yrd Mat Min Sub Traps Triggered 3 | . 1 . 2 Indirectly . | . . . . Trap Hack Attempts . | . . . . Triggered . | . . . . Disarmed . | . . . . Reprogrammed . | . . . . Reused . | . . . . Traps Extracted . | . . . . Installed . | . . . . Triggered . | . . . . Machines | -11 -10 -10 -10 ---------- Run | Yrd Mat Min Sub Machines Disabled 3 | . . . 3 Max in Single Turn 2 | . . . 2 Machines Repaired . | . . . . Machines Dismantled . | . . . . Machines Sabotaged . | . . . . Overloaded Fab Kills . | . . . . Hacking | -11 -10 -10 -10 --------- Run | Yrd Mat Min Sub Machines Accessed 3 | . 3 . . Terminals 3 | . 3 . . Fabricators . | . . . . Repair Stations . | . . . . Recycling Units . | . . . . Scanalyzers . | . . . . Garrison Access . | . . . . Total Hacks 12 | . 12 . . Successful 4 | . 4 . . Failed 8 | . 8 . . Catastrophic 1 | . 1 . . Database Lockouts . | . . . . Manual 11 | . 11 . . Terminals 12 | . 12 . . Fabricators . | . . . . Repair Stations . | . . . . Recycling Units . | . . . . Scanalyzers . | . . . . Garrison Access . | . . . . Terminal Hacks 3 | . 3 . . Robot Analysis 3 | . 3 . . Fabricator Hacks . | . . . . Repair Station Hacks . | . . . . Recycling Unit Hacks . | . . . . Scanalyzer . | . . . . Garrison Access Hacks . | . . . . Unauthorized Hacks 1 | . 1 . . Terminals 1 | . 1 . . Assimilate 1 | . 1 . . Fabricators . | . . . . Repair Stations . | . . . . Recycling Units . | . . . . Scanalyzers . | . . . . Garrison Access . | . . . . Data Cores Recovered . | . . . . Used . | . . . . Hacking Detections 3 | . 3 . . Full Trace Events 1 | . 1 . . Feedback Events . | . . . . Feedback Blocked . | . . . . Robot Schematics Acquired . | . . . . Robots Built . | . . . . Authchips . | . . . . Time . | . . . . Total Robot Build Rating . | . . . . Part Schematics Acquired . | . . . . Parts Built . | . . . . Authchips . | . . . . Time . | . . . . Total Part Build Rating . | . . . . Parts Repaired . | . . . . Time . | . . . . Parts Recycled . | . . . . Recycled Matter . | . . . . Retrieved Matter . | . . . . Retrieved Components . | . . . . Parts Scanalyzed . | . . . . Part Schematics Acquired . | . . . . Parts Damaged . | . . . . Bothacking | -11 -10 -10 -10 ------------ Run | Yrd Mat Min Sub Used RIF Installer . | . . . . Robots Hacked 1 | . . 1 . Non-combat 1 | . . 1 . Combat . | . . . . Robot Hacks Applied 1 | . . 1 . parse_system 1 | . . 1 . Relay Couplers Released . | . . . . Fabnet Peak Effective % . | . . . . Robots Rewired . | . . . . Allies Hacked . | . . . . Hacks Repelled . | . . . . Allies | -11 -10 -10 -10 -------- Run | Yrd Mat Min Sub Total Allies 4 | . 1 3 . Largest Group 4 | . 1 4 4 Highest-Rated Group 98 | . 57 98 98 Highest-Rated Ally 62 | . 57 58 62 Total Orders . | . . . . Ally Attacks 40 | . 1 10 29 Total Damage 725 | . 24 109 592 Kills 12 | . 2 1 9 Allies Corrupted . | . . . . Allies Melted . | . . . . Intel | -11 -10 -10 -10 ------- Run | Yrd Mat Min Sub Robot Analysis Total 3 | . 3 . . Derelict Logs Recovered 1 | . . 1 . Drone Launches . | . . . . Drone Recoveries . | . . . . Exploration | -11 -10 -10 -10 ------------- Run | Yrd Mat Min Sub Turns Passed 1821 | 166 198 462 995 Spaces Moved 1457 | 91 177 289 900 Core 6 | 3 3 . . Treads . | . . . . Legs . | . . . . Wheels 1451 | 88 174 289 900 Hover . | . . . . Flight . | . . . . Fastest Speed 50 | 50 95 95 80 Average Speed 94 | 90 96 95 94 Slowest Speed 200 | 95 200 95 95 Overloaded Moves . | . . . . Propulsion Burnouts . | . . . . Robots Hopped . | . . . . Cave-ins Triggered . | . . . . Exploration Rate (%) 37 | 4 34 50 60 Regions Visited 3 Branch Regions 2 Pre-discovered Areas 1 | . . 1 . Known Exits Taken . | . . . . Unknown Exits Taken 3 | 1 1 1 . Scrap Searched 3 | . . . 3 Spaces Dug . | . . . . Terrain Destroyed 49 | . . . 49 Melee . | . . . . Projectile . | . . . . AOE 49 | . . . 49 Terrain Rammed . | . . . . Walls Destroyed . | . . . . Machines Disabled . | . . . . Actions | -11 -10 -10 -10 --------- Run | Yrd Mat Min Sub Total 1773 | 132 203 453 985 Wait 181 | . 14 141 26 Move 1454 | 90 176 288 900 Hop . | . . . . Pick Up 22 | 11 5 3 3 Fast Attach 8 | 6 2 . . Attach 2 | 1 . . 1 Detach . | . . . . Swap 11 | . . 3 8 Drop 14 | 2 5 3 4 Fire 72 | 22 1 12 37 Melee 9 | . . 3 6 Ram . | . . . . Kick . | . . . . Crush . | . . . . Escape Stasis . | . . . . Rewire . | . . . . Trap . | . . . . Miscellaneous . | . . . . Route ------- -11/Scrapyard -10/Materials -10/Mines -10/Subcaves (discovered 2 exits: [*Mat] / [*Rec]) History --------- Turn | Location | Event 2 | -11/Scrapyard | Met Revision 17 33 | -11/Scrapyard | Discovered new exit (range 15) 167 | -11/Scrapyard | Entered Materials 268 | -10/Materials | Discovered new exit (range 9) 326 | -10/Materials | Build established: Mutant 365 | -10/Materials | Entered Mines 483 | -10/Mines | Received a Rocket Launcher from a helpful Derelict 567 | -10/Mines | Assisted by bots powering up and referring to "LRC-V3" 668 | -10/Mines | Learned location of Storage (-7) 698 | -10/Mines | Discovered new exit (range 10) 827 | -10/Mines | Entered Subcaves 827 | -10/Subcaves | Accompanied by 3 allies 922 | -10/Subcaves | Shifting Twisted Machinery released Shrapnel Trap 1516 | -10/Subcaves | Discovered new exit (range 14) 1717 | -10/Subcaves | Discovered new exit (range 16) 1766 | -10/Subcaves | Core integrity fell below 50% 1790 | -10/Subcaves | Shifting Twisted Machinery released Riot Gun 1817 | -10/Subcaves | Core integrity fell below 20% 1822 | -10/Subcaves | Destroyed by RH-NSF(R) with Subdweller Laser Last Messages --------------- 01760_ Critical hit (Impale). 01762_ Trooper 1b triggered Piercing Trap. 01762_ Spikes shoot up from the floor. 01762_ Trooper 1b destroyed. 01765_ Triggered Shrapnel Trap. 01765_ An expanding cloud of shrapnel blasts out in all directions. 01765_ Lgt. Treads destroyed. 01775_ Player 2 triggered Piercing Trap. 01775_ Spikes shoot up from the floor. 01775_ Player 2 suffers critical hit (Impale). 01783_ Acquired 5 matter. Riot Gun falls loose from the Twisted Machinery. 01799_ R9-D1I(R) destroyed. 01799_ BL-761(R) destroyed. 01805_ Acquired Sub. Monowheel. 01806_ Acquired 41 matter. 01807_ Acquired 6 matter. 01822_ Wheel destroyed. Map ----- +----------------------------------------------------+ | ???????????????????????????????????????????????## | | ???????????????????????????????????????????????## | | ???????????????????????????????????????????????### | | ???????????????????????????????????????????????### | | ?????????????????????????????????????????????????? | | ?????????????????????????????????????????????????? | | ?????????????????????????????????????????????????? | | ?????????????????????????????????????????????????? | | ?????????????????????????????????????????????????? | | ?????????????????????????????????????????????????? | | ?????????????????????????????????????????????????? | | ?????????????????????????????????????????????????? | | ?????????????????????????????????????????????????? | | ?????????????????????????????????????????????????? | | ?????????????? ??#####???????????????????????????? | | ?????????????? #######?????????????????????????? | | ????????????? ## ###?????????????????????????? | | ?????????????? #?????????????????????????? | | ???????????#" #####????????????????????? | | ???????????### # ###########??????????????# | | ??????????? # ## #########????????????## | | ?????????????## R # ### ####???????????## | | ?????????????"## R ####??????##### | | ??????????????"# ###?????# #### | | ??????????????? # ##???##### | | ???????????????"# ??#### @ ## ! ###??#### # | | ?????????????????????### ## & * #######" ## | | ??????????????????????## ### && ###### ##" " | | ??????????????????????## ### ###" """ | | ?????????????????????? #### "" | | ?????????????????????? ###### "" | | ??????????????????? ###### " | | ???????????????????## ???###" """" | | ???????????????????######## ##??##""" """" ## # | | ???????????????????###########??####"""########### | | ??????????????????????????####??################## | | ??????????????????????????????????#######????????? | | ?????????????????????????????????????????????????? | | ?????????????????????????????????????????????????? | | ?????????????????????????????????????????????????? | | ?????????????????????????????????????????????????? | | ?????????????????????????????????????????????????? | | ?????????????????????????????????????????????????? | | ?????????????????????????????????????????????????? | | ?????????????????????????????????????????????????? | | ?????????????????????????????????????????????????? | | ?????????????????????????????????????????????????? | | ?????????????????????????????????????????????????? | | ?????????????????????????????????????????????????? | | | +----------------------------------------------------+ Best States ------------- Heat Dissipation 25 Energy Generation 14 Energy Capacity 160 Matter Stores 300 Matter Capacity 300 Sight Range 16 Terrain Scan Density 10 Evasion (%) 44 Item Schematics ----------------- None Robot Schematics ------------------ None Fabricated ------------ Nothing Alien Tech Used ----------------- None Achievements -------------- None Challenges ------------ None Player 2 | -11 -10 -10 -10 ---------- Run | Yrd Mat Min Sub Slots Evolved . | . . . . Power . | . . . . Propulsion . | . . . . Utility . | . . . . Weapon . | . . . . Parts Attached 15 | . 6 2 7 Parts Lost 1 | . . . 1 Damage Taken 363 | . . 133 230 Core 25 | . . 7 18 Player 2/Cogmind (%) 9 | . . 46 7 Absorbed by Shields . | . . . . Damage Inflicted 430 | . 24 109 297 Player 2/Cogmind (%) 22 | . 51 42 22 Combat Hostiles Destroyed 3 | . . 1 2 Player 2/Cogmind (%) 27 | . . 20 33 Game ------ Seed GravitonLaserShielding Manual? 0 Play Time 00:16:13 Cumulative 79.0 hours Start 2024.04.12 @ 13:02:02 End 2024.04.12 @ 13:15:13 Sessions 1 Manual Loads 0 Difficulty Rogue Special Mode AFD2020/Player2 Game No. 96 Rogue 96 Adventurer 0 Explorer 0 Win Type - Total 1 Types 1/0/0/0/0/0/0/0/0 Lore% 43 Gallery% 63 Achievement% 49 Wizard Run 0 Options --------- Layout 1 ASCII 0 Keyboard 0 Movement Numpad Keybinds 0 Fullscreen 1 Font 24/Smallcaps Map View 50x35 Zoom Use 0% Tactical HUD 1 Map Filters NONE Filters NONE Steam 1 RUN: 6cca7ddf-90a2-41f3-8783-534bdc4be700